Cogmind - Beta 13 @@@ ROGUE MODE // 2024.06.13 @ 15:27:14 Player: SovietPaperclip Result: Destroyed by B-75 Beast with Heavy Plasma Cannon Performance ------------- Evolutions (3) 1500 Regions Visited (9) 1800 Robots Destroyed (148) 740 Value Destroyed (5263) 5263 Prototype IDs (19) 380 Alien Tech Used (1) 200 Bonus (1233) 1233 TOTAL SCORE: 11116 Bonus ------- High Alert Combat Kills 908 Follower Combat Kills 37 Met Data Miner 300 Friendly Fire -12 Cogmind --------- Core Integrity 0/700 Matter 208/300 Energy 286/290 System Corruption 2% Temperature Cool (12) Movement Rolling (145) Ox3 Location -6/Proximity Caves Parts ------- > --- POWER (1) -------- Improved Deuterium Engine > --- PROPULSION (4) --- Armored Treads Armored Treads Armored Huge Wheel > --- UTILITY (6) ------ Huge Storage Unit Machine Analyzer Improved Sensor Array Improved Signal Interpreter Advanced Targeting Computer Makeshift Light Armor Plating > --- WEAPON (3) ------- Advanced Assault Cannon Mini Assault Cannon Heavy Missile Launcher > --- INVENTORY (25) --- Improved Deuterium Engine Improved Deuterium Engine Armored Treads Armored Treads Advanced Heat Sink Cooling System Core Analyzer Matter Filter Advanced Particle Charger Transmission Jammer Graphene Brace Experimental Thermal Shield Improved Shield Generator Long-range Tractor Beam Mini Assault Cannon Mini Assault Cannon Mini Assault Cannon Mini Assault Cannon Heavy Mass Driver Heavy Mass Driver Makeshift Hammer Peak State ------------ > --- POWER ------------ Improved Deuterium Engine > --- PROPULSION ------- Armored Treads Armored Treads Armored Huge Wheel > --- UTILITY ---------- Huge Storage Unit Machine Analyzer Improved Signal Interpreter Advanced Targeting Computer Experimental Thermal Shield Improved Shield Generator > --- WEAPON ----------- Advanced Assault Cannon Mini Assault Cannon Mini Assault Cannon > --- INVENTORY -------- Improved Deuterium Engine Improved Deuterium Engine Armored Treads Armored Treads Armored Huge Wheel Cooling System Cooling System Improved Sensor Array Improved Sensor Array Core Analyzer Matter Filter Advanced Particle Charger Transmission Jammer Graphene Brace Long-range Tractor Beam Mini Assault Cannon Mini Assault Cannon Mini Assault Cannon Heavy Mass Driver Heavy Mass Driver Heavy Missile Launcher Makeshift Hammer [Rating: 65] Favorites ----------- Power Improved Deuterium Engine Engine Improved Deuterium Engine Power Core Nuclear Core Propulsion Armored Treads Treads Armored Treads Wheel Armored Huge Wheel Flight Unit Improved Flight Unit Utility Huge Storage Unit Device Improved Sensor Array Storage Huge Storage Unit Processor Machine Analyzer Hackware Hacking Suite Protection Hardened Heavy Armor Plating Weapon Mini Assault Cannon Energy Gun EM Pulse Gun Energy Cannon EM Pulse Cannon Ballistic Gun Assault Rifle Ballistic Cannon Mini Assault Cannon Launcher Heavy Missile Launcher Impact Weapon Impact Mace Build | -11 -10 -10 -9 -8 -7 -7 -7 -7 -6 ------- Run | Yrd Mat Min Mat Mat Fac Low Low Dat Pro Slots Evolved 6 | . . . 2 2 2 . . . . Power . | . . . . . . . . . . Propulsion 2 | . . . 1 1 . . . . . Utility 4 | . . . 1 1 2 . . . . Weapon . | . . . . . . . . . . Parts Attached 155 | 6 3 1 11 27 71 8 12 . 16 Power 8 | 1 1 1 1 2 2 . . . . Engine 6 | 1 . 1 1 1 2 . . . . Core 2 | . 1 . . 1 . . . . . Reactor . | . . . . . . . . . . Propulsion 19 | 2 . . 3 5 8 . . . 1 Treads 12 | 2 . . 2 4 4 . . . . Leg . | . . . . . . . . . . Wheel 6 | . . . . 1 4 . . . 1 Hover . | . . . . . . . . . . Flight 1 | . . . 1 . . . . . . Utility 81 | 1 2 . 3 9 45 6 7 . 8 Device 58 | . 1 . . 4 33 6 7 . 7 Storage 5 | 1 1 . 2 1 . . . . . Processor 3 | . . . . . 3 . . . . Hackware 3 | . . . . 1 2 . . . . Protection 12 | . . . 1 3 7 . . . 1 Artifact . | . . . . . . . . . . Weapon 47 | 2 . . 4 11 16 2 5 . 7 Energy Gun 2 | 1 . . . 1 . . . . . Energy Cannon 7 | . . . 1 3 2 . . . 1 Ballistic Gun 5 | 1 . . 3 1 . . . . . Ballistic Cannon 21 | . . . . 3 10 1 3 . 4 Launcher 11 | . . . . 3 3 1 2 . 2 Special Weapon . | . . . . . . . . . . Impact Weapon 1 | . . . . . 1 . . . . Slashing Weapon . | . . . . . . . . . . Piercing Weapon . | . . . . . . . . . . Special Melee Weapon . | . . . . . . . . . . Unidentified Prototypes 9 | . . . 3 1 2 1 . . 2 Corrupted Parts 1 | . . . . . 1 . . . . System Corruption 1 | . . . . . 1 . . . . Parts Lost 21 | . . . 1 8 10 . . . 2 Power 3 | . . . . 2 1 . . . . Propulsion 6 | . . . . 1 4 . . . 1 Utility 8 | . . . . 3 4 . . . 1 Weapon 4 | . . . 1 2 1 . . . . Highest Loss Streak 5 | . . . 1 5 3 . . . 1 To Critical Strikes . | . . . . . . . . . . Average Slot Usage (%) 83 | . 89 100 89 81 77 83 84 78 90 Engine 6 | . 12 6 11 8 3 7 7 7 7 Core 1 | . 1 7 . . 3 . . . . Treads 16 | . 28 28 30 22 7 14 14 14 14 Wheel 6 | . . . . 6 9 7 7 7 7 Device 8 | . 4 14 6 8 5 14 14 14 12 Storage 8 | . 14 14 17 9 7 7 7 7 7 Processor 11 | . . . . . 15 22 21 21 21 Protection 5 | . . . 4 9 8 . . . . Energy Gun 1 | . 14 14 . 1 . . . . . Energy Cannon 1 | . . . . 7 . . . . . Ballistic Gun 3 | . 14 14 18 2 . . . . . Ballistic Cannon 9 | . . . . 4 14 7 12 7 16 Naked Turns . | . . . . . . . . . . Heaviest Build 132 | 14 24 24 30 122 132 115 114 101 112 Greatest Support 80 | 40 40 40 60 80 56 28 28 28 28 Greatest Overweight (x) 4 | . . . . 4 4 4 4 3 3 Average Overweight (x) 2 | . . . . 3 3 3 3 3 3 Largest Inventory Capacity 25 | 8 10 10 10 25 25 25 25 25 25 Average Capacity 21 | 7 9 10 10 22 25 25 25 25 25 Most Carried 25 | 2 4 7 10 25 25 25 25 25 25 Average Carried 19 | . 2 4 9 21 22 23 23 24 24 Final Capacity 25 | 8 10 10 10 25 25 25 25 25 25 Final Carried 25 | 1 3 7 10 21 23 24 23 25 23 Class Distribution -------------------- 56% | Mutant 21% | Skirmisher 10% | Scavenger-Mutant 9% | Scavenger-Skirmisher Dominant Class ---------------- Mutant | -10/Materials Mutant | -10/Mines Scavenger-Mutant | -9/Materials Mutant | -8/Materials Mutant | -7/Factory Mutant | -7/Lower Caves Skirmisher | -7/Lower Caves Mutant | -7/Data Miner Skirmisher | -6/Proximity Caves Resources | -11 -10 -10 -9 -8 -7 -7 -7 -7 -6 ----------- Run | Yrd Mat Min Mat Mat Fac Low Low Dat Pro Matter Collected 5169 | 244 106 25 533 948 2332 235 346 . 400 Remotely 1671 | . . . . 136 1501 34 . . . Salvage Created 5489 | . 196 139 679 2043 2044 125 43 . 220 Parts 279 | . 9 7 49 84 114 6 1 . 9 Haulers Intercepted 10 | . . . 4 5 1 . . . . Recyclers Shooed 3 | . . . 3 . . . . . . Parts Field Recycled . | . . . . . . . . . . Retrieved Matter . | . . . . . . . . . . Parts Self-Destructed 13 | . . . . . . 4 . . 9 Prevented . | . . . . . . . . . . Kills | -11 -10 -10 -9 -8 -7 -7 -7 -7 -6 ------- Run | Yrd Mat Min Mat Mat Fac Low Low Dat Pro Combat Hostiles Destroyed 116 | . 4 3 9 34 49 5 4 . 8 Guns 23 | . 4 3 9 7 . . . . . Cannons 66 | . . . . 18 40 1 2 . 5 AOE 25 | . . . . 7 9 4 2 . 3 Classes Destroyed 16 | . 1 2 5 5 3 . . . . Worker 8 | . . . . 1 7 . . . . Builder 5 | . . . 1 1 3 . . . . Hauler 10 | . . . 4 5 1 . . . . Recycler 5 | . . 1 1 3 . . . . . Mechanic 1 | . . . 1 . . . . . . Operator 4 | . . . 1 1 2 . . . . Watcher 5 | . . . . 3 2 . . . . Swarmer 17 | . . 3 3 3 . 4 1 . 3 Grunt 61 | . 4 . 4 20 26 1 1 . 5 Brawler 2 | . . . . . 2 . . . . Duelist 2 | . . . . . 2 . . . . Sentry 14 | . . . 2 6 5 . 1 . . Specialist 6 | . . . . 2 4 . . . . Hunter 8 | . . . . 2 5 . 1 . . Programmer 4 | . . . . . 4 . . . . Heavy 2 | . . . . 1 1 . . . . Packrat 1 | . . . . . . 1 . . . Best Kill Streak 14 | . 2 3 6 5 14 4 3 . 3 Combat Bots Only 10 | . 2 3 3 4 10 4 3 . 3 Max Kills in Single Turn 3 | . 1 2 1 2 3 3 2 . 3 Gunslinging . | . . . . . . . . . . Exploded 3 | . . . . 2 3 3 1 . 2 Melee . | . . . . . . . . . . Uniques/NPCs Destroyed . | . . . . . . . . . . Combat | -11 -10 -10 -9 -8 -7 -7 -7 -7 -6 -------- Run | Yrd Mat Min Mat Mat Fac Low Low Dat Pro Hostile Shots Fired 931 | . 22 4 32 179 597 9 35 . 53 Missed 266 | . 6 . 7 50 174 3 6 . 20 Damage Taken 10053 | . 203 35 287 2876 5793 67 237 . 555 Core 1054 | . 51 9 61 208 572 . 30 . 123 Absorbed by Shields 286 | . . . . . 118 25 93 . 50 Core Remaining (%) 80 | 100 . 76 84 62 . . . . . Volleys Fired 451 | . 20 5 64 129 205 8 8 . 12 Largest 3 | . 2 2 2 2 2 1 3 . 3 Hottest 144 | . 60 60 60 126 96 48 144 . 144 Shots Fired 704 | . 40 10 95 207 294 8 20 . 30 Gun 207 | . 40 10 95 62 . . . . . Cannon 472 | . . . . 139 285 6 16 . 26 Launcher 25 | . . . . 6 9 2 4 . 4 Special . | . . . . . . . . . . Kinetic 545 | . 20 5 92 102 278 6 16 . 26 Thermal . | . . . . . . . . . . Explosive 16 | . . . . 6 . 2 4 . 4 Electromagnetic 143 | . 20 5 3 99 16 . . . . Robot Hit Streak 18 | . 8 5 7 18 14 6 6 . 10 Robot Miss Streak 6 | . 3 1 4 6 4 2 2 . 2 Penetration Max 1 | . . . . . 1 . . . . Secondary Targets . | . . . . . . . . . . Shots Hit Robots 445 | . 27 6 61 148 167 3 12 . 21 Core Hits 241 | . 10 5 34 70 96 5 10 . 11 Critical Kills . | . . . . . . . . . . Critical Parts Destroyed . | . . . . . . . . . . Critical Strikes 7 | . . . . 2 4 . . . 1 Blast 5 | . . . . . 4 . . . 1 Corrupt 2 | . . . . 2 . . . . . Melee Attacks . | . . . . . . . . . . Impact . | . . . . . . . . . . Slashing . | . . . . . . . . . . Piercing . | . . . . . . . . . . Sneak Attacks . | . . . . . . . . . . Combat Hostiles . | . . . . . . . . . . Follow-up Attacks . | . . . . . . . . . . Damage Inflicted 14475 | . 351 89 903 5279 6122 387 506 . 838 Guns 1965 | . 351 89 903 622 . . . . . Cannons 8732 | . . . . 2825 5159 81 195 . 472 Explosions 3778 | . . . . 1832 963 306 311 . 366 Melee . | . . . . . . . . . . Ramming . | . . . . . . . . . . Kinetic 8249 | . 182 54 865 1405 4995 81 195 . 472 Thermal 1285 | . . . . 1202 83 . . . . Explosive 1613 | . . . . 630 . 306 311 . 366 Electromagnetic 3328 | . 169 35 38 2042 1044 . . . . Impact . | . . . . . . . . . . Slashing . | . . . . . . . . . . Piercing . | . . . . . . . . . . Highest Corruption 2 | . . . . 1 2 2 2 2 2 Average Corruption 1 | . . . . 1 1 2 2 2 2 Corruption Purged . | . . . . . . . . . . Corruption Blocked . | . . . . . . . . . . Effects 64 | . . . . 7 24 5 14 3 11 Message Errors 14 | . . . . 1 7 . 4 1 1 Matter Fused 15 | . . . . . 3 1 4 2 5 Heat Flow Errors 6 | . . . . 1 3 . 1 . 1 Energy Discharges 8 | . . . . 2 2 2 2 . . Parts Fused 1 | . . . . . 1 . . . . Data Loss (minor) 11 | . . . . 1 3 2 2 . 3 Data Loss (major) 2 | . . . . 1 . . 1 . . Misfires 2 | . . . . 1 1 . . . . Alerts 3 | . . . . . 2 . . . 1 Weapon Failures 2 | . . . . . 2 . . . . Overload Shots . | . . . . . . . . . . Overflow Damage 318 | . . . . 149 92 67 10 . . Projectiles 102 | . . . . 21 67 14 . . . Explosions 216 | . . . . 128 25 53 10 . . Melee . | . . . . . . . . . . Knockbacks 46 | . . . . . 42 . . . 4 Impact . | . . . . . . . . . . Kinetic 42 | . . . . . 38 . . . 4 Secondary 4 | . . . . . 4 . . . . Self-Inflicted Damage 448 | . . . . 384 64 . . . . Shots 12 | . . . . 10 2 . . . . Rammed . | . . . . . . . . . . Targets Rammed . | . . . . . . . . . . Kicked . | . . . . . . . . . . Crushed . | . . . . . . . . . . Highest Temperature 440 | . 36 . . 312 440 . 101 . 300 Average Temperature 91 | . 15 . . 63 107 . 43 . 71 Received Heat Transfer 3461 | . 126 . 111 696 2031 30 38 . 429 Effects 1 | . . . . . 1 . . . . Matter Decay 1 | . . . . . 1 . . . . Siege Activations . | . . . . . . . . . . Robots Corrupted 4 | . . . . 4 . . . . . Combat Hostiles 2 | . . . . 2 . . . . . Parts Fried 15 | . . . . 12 3 . . . . Impact Corruptions . | . . . . . . . . . . Robots Melted . | . . . . . . . . . . Combat Hostiles . | . . . . . . . . . . Parts Melted . | . . . . . . . . . . Heat Transferred 1200 | . . . . 1050 150 . . . . Parts Sabotaged . | . . . . . . . . . . Parts Stolen . | . . . . . . . . . . Parts Stripped . | . . . . . . . . . . Power Chain Reactions 13 | . . . . 10 3 . . . . Alert | -11 -10 -10 -9 -8 -7 -7 -7 -7 -6 ------- Run | Yrd Mat Min Mat Mat Fac Low Low Dat Pro Peak Influence 1187 | . 240 168 220 709 1187 . . . . Initial 322 | . . 93 . 12 322 . . . . Average 355 | . 115 147 44 300 539 . . . . Maximum Alert Level 4 | . 1 . 1 3 4 . . . . Low Security (%) 41 | 100 70 100 98 42 12 . . . . Level 1 28 | . 29 . 1 26 43 . . . . Level 2 14 | . . . . 29 13 . . . . Level 3 11 | . . . . 1 23 . . . . Level 4 3 | . . . . . 7 . . . . Level 5 . | . . . . . . . . . . High Security . | . . . . . . . . . . Max Security . | . . . . . . . . . . Squads Dispatched 28 | . 1 1 2 7 17 . . . . Investigation 8 | . 1 1 1 2 3 . . . . Extermination 4 | . . . . . 4 . . . . Reinforcement 12 | . . . 1 4 7 . . . . Assault 1 | . . . . 1 . . . . . Garrison 3 | . . . . . 3 . . . . Intercept . | . . . . . . . . . . Searches Triggered . | . . . . . . . . . . Construction Impeded 3 | . . . . 2 1 . . . . Haulers Reinforced . | . . . . . . . . . . Active Scanning Responses . | . . . . . . . . . . Cargo Convoy Interrupts 1 | . . . . . 1 . . . . Stealth | -11 -10 -10 -9 -8 -7 -7 -7 -7 -6 --------- Run | Yrd Mat Min Mat Mat Fac Low Low Dat Pro Distress Signals 11 | . 1 . 3 1 6 . . . . Communications Jammed . | . . . . . . . . . . Distress Signals . | . . . . . . . . . . Times Spotted 168 | . 13 2 25 48 63 3 4 . 10 Peak Tracking Total 7 | . 5 2 5 5 7 2 3 . 3 Tactical Retreats 9 | . 5 . . . 2 1 . . 1 Traps | -11 -10 -10 -9 -8 -7 -7 -7 -7 -6 ------- Run | Yrd Mat Min Mat Mat Fac Low Low Dat Pro Traps Triggered 8 | . . . . 3 5 . . . . Indirectly . | . . . . . . . . . . Trap Hack Attempts . | . . . . . . . . . . Triggered . | . . . . . . . . . . Disarmed . | . . . . . . . . . . Reprogrammed . | . . . . . . . . . . Reused . | . . . . . . . . . . Traps Extracted . | . . . . . . . . . . Installed . | . . . . . . . . . . Triggered 2 | . . . . . 1 . . . 1 Machines | -11 -10 -10 -9 -8 -7 -7 -7 -7 -6 ---------- Run | Yrd Mat Min Mat Mat Fac Low Low Dat Pro Machines Disabled 8 | . . . 1 1 6 . . . . Max in Single Turn 1 | . . . 1 1 1 . . . . Garrison Access 1 | . . . . 1 . . . . . Machines Repaired . | . . . . . . . . . . Machines Dismantled . | . . . . . . . . . . Machines Sabotaged . | . . . . . . . . . . Overloaded Fab Kills . | . . . . . . . . . . Hacking | -11 -10 -10 -9 -8 -7 -7 -7 -7 -6 --------- Run | Yrd Mat Min Mat Mat Fac Low Low Dat Pro Machines Accessed 25 | . 2 1 3 6 9 . . 4 . Terminals 14 | . 2 . 3 4 5 . . . . Fabricators 3 | . . . . . 3 . . . . Repair Stations . | . . . . . . . . . . Recycling Units . | . . . . . . . . . . Scanalyzers 1 | . . . . 1 . . . . . Garrison Access 2 | . . . . 1 1 . . . . Total Hacks 72 | . 4 1 7 15 17 . . 28 . Successful 49 | . 1 1 4 9 6 . . 28 . Failed 21 | . 3 . 2 5 11 . . . . Catastrophic 7 | . 1 . . 2 4 . . . . Database Lockouts 2 | . . . 1 1 . . . . . Manual 21 | . 2 . 7 8 4 . . . . Terminals 27 | . 4 . 7 8 8 . . . . Fabricators 5 | . . . . . 5 . . . . Repair Stations . | . . . . . . . . . . Recycling Units . | . . . . . . . . . . Scanalyzers 5 | . . . . 5 . . . . . Garrison Access 6 | . . . . 2 4 . . . . Terminal Hacks 33 | . . 1 2 1 1 . . 28 . Record 11 | . . . . . . . . 11 . Part Schematic 12 | . . . 1 1 1 . . 9 . Robot Schematic 5 | . . . . . . . . 5 . Prototype ID Bank 3 | . . . . . . . . 3 . Open Door 1 | . . 1 . . . . . . . Unreport Threat 1 | . . . 1 . . . . . . Fabricator Hacks 4 | . . . . . 4 . . . . Load Schematic 2 | . . . . . 2 . . . . Build 2 | . . . . . 2 . . . . Repair Station Hacks . | . . . . . . . . . . Recycling Unit Hacks . | . . . . . . . . . . Scanalyzer 5 | . . . . 5 . . . . . Insert Component 2 | . . . . 2 . . . . . Analyze 3 | . . . . 3 . . . . . Garrison Access Hacks . | . . . . . . . . . . Unauthorized Hacks 7 | . 1 . 2 3 1 . . . . Terminals 7 | . 1 . 2 3 1 . . . . Botnet 7 | . 1 . 2 3 1 . . . . Fabricators . | . . . . . . . . . . Repair Stations . | . . . . . . . . . . Recycling Units . | . . . . . . . . . . Scanalyzers . | . . . . . . . . . . Garrison Access . | . . . . . . . . . . Data Cores Recovered 2 | . . . . 1 1 . . . . Used 1 | . . . . . 1 . . . . Hacking Detections 16 | . 2 . 1 4 9 . . . . Full Trace Events 4 | . 1 . . 1 2 . . . . Feedback Events . | . . . . . . . . . . Feedback Blocked . | . . . . . . . . . . Robot Schematics Acquired 5 | . . . . . . . . 5 . Robots Built . | . . . . . . . . . . Authchips . | . . . . . . . . . . Time . | . . . . . . . . . . Total Robot Build Rating . | . . . . . . . . . . Part Schematics Acquired 14 | . . . 1 3 1 . . 9 . Parts Built 2 | . . . . . 2 . . . . Authchips . | . . . . . . . . . . Time 212 | . . . . . 212 . . . . Total Part Build Rating 12 | . . . . . 12 . . . . Parts Repaired . | . . . . . . . . . . Time . | . . . . . . . . . . Parts Recycled . | . . . . . . . . . . Recycled Matter . | . . . . . . . . . . Retrieved Matter . | . . . . . . . . . . Retrieved Components . | . . . . . . . . . . Parts Scanalyzed 2 | . . . . 2 . . . . . Part Schematics Acquired 2 | . . . . 2 . . . . . Parts Damaged . | . . . . . . . . . . Bothacking | -11 -10 -10 -9 -8 -7 -7 -7 -7 -6 ------------ Run | Yrd Mat Min Mat Mat Fac Low Low Dat Pro Used RIF Installer . | . . . . . . . . . . Robots Hacked . | . . . . . . . . . . Non-combat . | . . . . . . . . . . Combat . | . . . . . . . . . . Robot Hacks Applied . | . . . . . . . . . . Relay Couplers Released 2 | . . . . 2 . . . . . Machine Destruction 2 | . . . . 2 . . . . . Fabnet Peak Effective % . | . . . . . . . . . . Robots Rewired . | . . . . . . . . . . Allies Hacked . | . . . . . . . . . . Hacks Repelled . | . . . . . . . . . . Allies | -11 -10 -10 -9 -8 -7 -7 -7 -7 -6 -------- Run | Yrd Mat Min Mat Mat Fac Low Low Dat Pro Total Allies 1 | . . . . . . . . . 1 Largest Group 1 | . . . . . . . . . 1 Highest-Rated Group 96 | . . . . . . . . . 96 Highest-Rated Ally 96 | . . . . . . . . . 96 Total Orders . | . . . . . . . . . . Ally Attacks 6 | . . . . . . . . . 6 Total Damage 185 | . . . . . . . . . 185 Kills 1 | . . . . . . . . . 1 Allies Corrupted . | . . . . . . . . . . Allies Melted . | . . . . . . . . . . Intel | -11 -10 -10 -9 -8 -7 -7 -7 -7 -6 ------- Run | Yrd Mat Min Mat Mat Fac Low Low Dat Pro Robot Analysis Total . | . . . . . . . . . . Derelict Logs Recovered 6 | . . 2 . . . 1 2 . 1 Drone Launches . | . . . . . . . . . . Drone Recoveries . | . . . . . . . . . . Exploration | -11 -10 -10 -9 -8 -7 -7 -7 -7 -6 ------------- Run | Yrd Mat Min Mat Mat Fac Low Low Dat Pro Turns Passed 8993 | 65 281 444 840 1851 2983 531 1175 112 711 Spaces Moved 4538 | 37 114 254 372 791 1416 331 742 77 404 Core 3 | 3 . . . . . . . . . Treads 978 | 34 114 254 372 204 . . . . . Legs . | . . . . . . . . . . Wheels 3557 | . . . . 587 1416 331 742 77 404 Hover . | . . . . . . . . . . Flight . | . . . . . . . . . . Fastest Speed 50 | 50 160 160 160 145 130 145 145 145 145 Average Speed 153 | 151 160 160 160 167 150 145 145 145 145 Slowest Speed 242 | 160 160 160 160 242 160 160 160 145 145 Overloaded Moves . | . . . . . . . . . . Propulsion Burnouts . | . . . . . . . . . . Robots Hopped . | . . . . . . . . . . Cave-ins Triggered . | . . . . . . . . . . Exploration Rate (%) 51 | 4 28 75 33 67 40 54 78 68 68 Regions Visited 9 Branch Regions 5 Pre-discovered Areas 4 | . . 2 . . . . 1 1 . Known Exits Taken 4 | . . . . . 1 1 1 1 . Unknown Exits Taken 5 | 1 1 1 1 1 . . . . . Scrap Searched 6 | . . . . . . . 3 . 3 Spaces Dug 47 | . . . . . 18 29 . . . Terrain Destroyed 250 | . . . . 108 47 29 26 . 40 Melee . | . . . . . . . . . . Projectile 65 | . . . . 11 44 1 4 . 5 AOE 185 | . . . . 97 3 28 22 . 35 Terrain Rammed . | . . . . . . . . . . Walls Destroyed . | . . . . . . . . . . Machines Disabled . | . . . . . . . . . . Actions | -11 -10 -10 -9 -8 -7 -7 -7 -7 -6 --------- Run | Yrd Mat Min Mat Mat Fac Low Low Dat Pro Total 5872 | 44 172 282 523 1131 1953 370 819 78 500 Wait 569 | . 32 18 45 142 197 21 55 . 59 Move 4529 | 36 113 253 371 790 1415 330 741 76 404 Hop . | . . . . . . . . . . Pick Up 94 | 2 2 4 19 23 36 1 1 . 6 Fast Attach 25 | 5 2 . 4 7 7 . . . . Attach 39 | 1 . . 1 8 18 2 4 . 5 Detach 8 | . . . . . 3 1 2 2 . Swap 92 | . 1 1 6 12 46 7 8 . 11 Drop 65 | . 2 1 13 20 26 . . . 3 Fire 451 | . 20 5 64 129 205 8 8 . 12 Melee . | . . . . . . . . . . Ram . | . . . . . . . . . . Kick . | . . . . . . . . . . Crush . | . . . . . . . . . . Escape Stasis . | . . . . . . . . . . Rewire . | . . . . . . . . . . Trap . | . . . . . . . . . . Miscellaneous . | . . . . . . . . . . Route ------- -11/Scrapyard -10/Materials -10/Mines -9/Materials -8/Materials (discovered 2 exits: *Fac x2) -7/Factory (discovered 3 exits: [*Sto x2] / *Low) -7/Lower Caves -7/Lower Caves (discovered 2 exits: *Fac / *Dat) -7/Data Miner -6/Proximity Caves History --------- Turn | Location | Event 6 | -11/Scrapyard | Discovered new exit (range 16) 66 | -11/Scrapyard | Entered Materials 311 | -10/Materials | Build established: Mutant 324 | -10/Materials | Discovered new exit (range 12) 347 | -10/Materials | Entered Mines 385 | -10/Mines | Met a Derelict bent on vengeance 536 | -10/Mines | Learned location of Zion (-6) 556 | -10/Mines | Met a Derelict shopkeep closing up shop 780 | -10/Mines | Discovered new exit (range 7) 791 | -10/Mines | Entered Materials 791 | -9/Materials | Evolved 2 slots: Propulsion x1, Utility x1 1325 | -9/Materials | Central database locked down 1502 | -9/Materials | Build established: Scavenger-Mutant 1612 | -9/Materials | Discovered new exit (range 11) 1631 | -9/Materials | Entered another Materials area 1631 | -8/Materials | Evolved 2 slots: Propulsion x1, Utility x1 2454 | -8/Materials | Build established: Mutant 2801 | -8/Materials | Central database locked down 2814 | -8/Materials | Discovered new exit (range 5) 3419 | -8/Materials | Discovered new exit (range 4) 3473 | -8/Materials | Lost 5 parts (1p2u2w) 3482 | -8/Materials | Entered Factory 3482 | -7/Factory | Evolved 2 slots: Utility x2 4583 | -7/Factory | Discovered new exit (range 12) 4656 | -7/Factory | Discovered new exit (range 16) 4688 | -7/Factory | Identified exit to Lower Caves 4735 | -7/Factory | Build established: Scavenger-Skirmisher 5365 | -7/Factory | Cargo convoy interrupted 5382 | -7/Factory | Discovered new exit (range 16) 5512 | -7/Factory | Garrison activated, responded to threat 5562 | -7/Factory | Lost 3 parts (2n1u) 5584 | -7/Factory | Fabricated Hvy. Mass Driver? 5591 | -7/Factory | Fabricated Hvy. Mass Driver (x1) 5591 | -7/Factory | Destroyed 10 combat bots 5672 | -7/Factory | Core integrity fell below 50% 6018 | -7/Factory | Build established: Skirmisher 6386 | -7/Factory | Core integrity fell below 20% 6465 | -7/Factory | Entered Lower Caves 6525 | -7/Lower Caves | Encountered a Warlord checkpoint 6538 | -7/Lower Caves | Learned Factory terminal intel 6630 | -7/Lower Caves | Build established: Mutant 6965 | -7/Lower Caves | Discovered new exit (range 8) 6983 | -7/Lower Caves | Found Alien Artifact 6984 | -7/Lower Caves | Identified Core Expander 6984 | -7/Lower Caves | Installed Core Expander, added new Weapon slot 6994 | -7/Lower Caves | Identified exit to Lower Caves 6996 | -7/Lower Caves | Entered another Lower Caves area 7047 | -7/Lower Caves | Discovered new exit (range 5) 7053 | -7/Lower Caves | Identified exit to Factory 7871 | -7/Lower Caves | Attracted the attention of an 0b10 checkpoint 8153 | -7/Lower Caves | Discovered new exit (range 13) 8168 | -7/Lower Caves | Spotted B-75 Beast 8169 | -7/Lower Caves | Identified exit to Data Miner 8171 | -7/Lower Caves | Entered Data Miner 8172 | -7/Data Miner | Discovered new exit (range 6) 8200 | -7/Data Miner | Met Data Miner 8232 | -7/Data Miner | Learned location of Section 7 (-2) 8232 | -7/Data Miner | Acquired the access code to Warlord's prototype stash 8251 | -7/Data Miner | Received God Mode back door access code from Data Miner 8281 | -7/Data Miner | Identified exit to Proximity Caves 8283 | -7/Data Miner | Entered Proximity Caves 8316 | -6/Proximity Caves | Escorted by Enhanced Grunt 8388 | -6/Proximity Caves | Found Prototype Device 8706 | -6/Proximity Caves | Identified Exp. Thermal Shield 8825 | -6/Proximity Caves | Spotted B-75 Beast 8857 | -6/Proximity Caves | Learned Factory emergency access door positions 8994 | -6/Proximity Caves | Destroyed by B-75 Beast with Heavy Plasma Cannon Last Messages --------------- 08768_ Critical hit (Burn: +27). 08769_ G-50 Soldier destroyed. 08777_ The unstable cave ceiling collapses. 08792_ Acquired 15 matter. 08796_ The unstable cave ceiling collapses. 08857_ Acquired derelict log, extracted data. Data stored: Factory emergency access points. 08858_ System corrupted: Component data lost. 08889_ Searching scrap... 08889_ Found Adv. Heat Sink. 08889_ Found Mak. Light Armor Plating. 08889_ Found Imp. Heat Sink. 08889_ Found 32 Matter. 08890_ Acquired 32 matter. 08892_ Acquired Mak. Light Armor Plating. 08894_ Dropped Cooling System. 08899_ Acquired Adv. Heat Sink. 08916_ System corrupted: Component data lost. 08941_ Arm. Huge Wheel destroyed. 08950_ Critical hit (Meltdown: +310). Map ----- +----------------------------------------------------+ | ##???????????????????? #??????? | | ##???????????????????????# ####??????? | | ###### #????????????????# ###???????? | | #????????????????# "" "#???????? | | ###??????? ????????## "" ###?????? | | #?????????# ###???## ## "#?????? | | #?????????? ??# ??# ##?????? | | ##??????????? $??# ??# ## #??????? | | ##?????????????# ### ??## #" %"## #??????? | | #?####?????????# ????###" ##?##??????? | | ### #??????????? B ???????" #??????????? | | ## #???????????## #???????" #??????????? | | ## ##?????????## #####???# ##?????????? | | ?## ####??????# #???# % ###???????? | | ??##### #???????# ##??# #######?? | | ####?## ##????????# #??# #?? | | ## #?????????## ## #??# ### ### #?? | | #??????????# ### #??## #?? # #?? | | ##??????????# #?# ##### #??? # #?? | | # ##??????????# #### #???? #?? | | ##### ##?????????# #?# #????? #?? | | ????## #?????????# #?# ### #??????# #?? | | ????## ##?????????# #### #?# #??????# #?? | | ????# ##????####### ## #?# ######## #?? | | ????# ####??#### ## ##?# ! ! #?? | | ????## ####### ## @ ##??############?? | | ??#### ## # #????????????????? | | ?## ## m ##???????????????? | | ?# #???????????????? | | ?# ########## #??????????????? | | ?###?????????### ## ##??????????????? | | ???????????????## # ### ##???????????????? | | ????????????????### # #?####????????????????? | | ?????????????????### #######?????????????????????? | | ???????????????????######????????????????????????? | | ?????????????????????????????????????????????????? | | ?????????????????????????????????????????????????? | | ?????????????????????????????????????????????????? | | ?????????????????????????????????????????????????? | | ?????????????????????????????????????????????????? | | ?????????????????????????????????????????????????? | | ?????????????????????????????????????????????????? | | ?????????????????????????????????????????????????? | | ?????????????????????????????????????????????????? | | ?????????????????????????????????????????????????? | | ?????????????????????????????????????????????????? | | ?????????????????????????????????????????????????? | | ?????????????????????????????????????????????????? | | ?????????????????????????????????????????????????? | | ?????????????????????????????????????????????????? | +----------------------------------------------------+ Best States ------------- Heat Dissipation 56 Coolant Potential 65 Energy Generation 18 Energy Capacity 290 Matter Stores 450 Matter Capacity 450 Sight Range 16 Robot Scan Range 15 Terrain Scan Density 10 Jamming Range 12 Armor Coverage 825 Evasion (%) 40 Targeting Accuracy 8 Recoil Reduction 4 Matter Filtering 30 Offensive Hacking 10 Defensive Hacking 10 Item Schematics ----------------- Hpw. Tractor Beam | -9/Materials | Hacked Hrd. Heavy Armor Plating | -8/Materials | Scanalyzed Arm. Huge Wheel | -8/Materials | Scanalyzed Lrn. Tractor Beam | -8/Materials | Hacked Hvy. Mass Driver | -7/Factory | Hacked Combat Drone Bay | -7/Data Miner | Free Lgt. Regenerative Plating | -7/Data Miner | Free Biomechanical Wings | -7/Data Miner | Free Thermal Defense Suite | -7/Data Miner | Free Imp. Lightning Gun | -7/Data Miner | Free Field Propulsion Drive | -7/Data Miner | Free Adv. Trap Extractor | -7/Data Miner | Free Mass Driver | -7/Data Miner | Free Imp. Component Analysis Suite | -7/Data Miner | Free Robot Schematics ------------------ L-41 Fighter | -7/Data Miner | Free G-50 Soldier | -7/Data Miner | Free A-15 Conveyor | -7/Data Miner | Free H-66 Slayer | -7/Data Miner | Free E-15 Imp | -7/Data Miner | Free Fabricated ------------ Hvy. Mass Driver | x1 | -7/Factory Hvy. Mass Driver | x1 | -7/Factory Alien Tech Used ----------------- Core Expander Achievements -------------- None Challenges ------------ None Game ------ Seed TargetFlakDerivative Manual? 0 Play Time 01:22:32 Cumulative 125.0 hours Start 2024.06.13 @ 12:21:33 End 2024.06.13 @ 15:27:14 Sessions 8 Manual Loads 0 Difficulty Rogue Special Mode None Game No. 170 Rogue 170 Adventurer 0 Explorer 0 Win Type - Total 1 Types 1/0/0/0/0/0/0/0/0 Lore% 49 Gallery% 54 Achievement% 50 Wizard Run 0 Options --------- Layout 1 ASCII 0 Keyboard 0 Movement Mouse Keybinds 0 Fullscreen 1 Font 32/SmallcapsGlow Map View 50x35 Zoom Use 0% Tactical HUD 1 Map Filters NONE Filters NONE Steam 1 RUN: fee7bdfb-5c83-43a0-b240-341926eb0bef